bitfinex/quotes_SOLUSD_20250413
["timestamp","ask_amount","ask_price","bid_price","bid_amount"]
[1744563457611,10.71771702,129.54,129.5,10.71771702]
[1744563459714,10.71771702,129.54,129.51,7.7214]
[1744563460603,10.71771702,129.55,129.51,7.7214]
[1744563460905,10.71771702,129.56,129.51,18.43911702]
[1744563461283,95.52794016,129.57,129.52,10.71771702]
[1744563461489,12.34361702,129.57,129.52,10.71771702]
[1744563461714,10.71771702,129.58,129.54,7.7196]
[1744563462010,0.03,129.59,129.55,10.71771702]
[1744563462806,10.74771702,129.59,129.54,18.43731702]
[1744563464812,10.71771702,129.57,129.53,14.8599]
[1744563465711,10.71771702,129.55,129.53,7.14]
[1744563465900,10.71771702,129.54,129.51,7.7212]
[1744563466105,10.71771702,129.54,129.5,7.722]
[1744563466405,10.71771702,129.53,129.5,7.722]
[1744563467818,10.71771702,129.54,129.5,7.722]
[1744563469919,26.36744886,129.57,129.5,7.722]
[1744563470098,10.71771702,129.54,129.5,7.722]
[1744563470293,10.71771702,129.54,129.5,18.43971702]
[1744563471898,10.71771702,129.54,129.5,7.722]
[1744563474221,10.71771702,129.54,129.5,18.43971702]
[1744563474707,10.71771702,129.55,129.5,18.43971702]
[1744563474912,7.7175,129.58,129.51,10.71771702]
[1744563475206,10.71771702,129.57,129.53,10.71771702]
[1744563475425,10.71771702,129.57,129.52,10.71771702]
[1744563476021,10.71771702,129.57,129.53,7.7202]
[1744563476232,10.71771702,129.58,129.53,18.43791702]
[1744563477725,10.71771702,129.57,129.53,18.43791702]
[1744563480110,10.71771702,129.58,129.53,18.43791702]
[1744563480424,10.74771702,129.59,129.54,10.71771702]
[1744563480609,10.74771702,129.59,129.55,10.71771702]
[1744563480808,0.03,129.59,129.57,10.71771702]
[1744563481015,10.74771702,129.59,129.56,1.5393]
[1744563481318,10.71771702,129.58,129.54,100.43771702]
[1744563481500,0.03,129.59,129.54,100.43771702]
[1744563481501,10.71771702,129.57,129.54,7.12]
[1744563481700,10.71771702,129.58,129.54,7.12]
[1744563481996,10.71771702,129.58,129.55,7.719]
[1744563482615,0.03,129.59,129.55,7.719]
[1744563482812,10.74771702,129.59,129.55,7.719]
[1744563483331,10.71771702,129.57,129.55,7.719]
[1744563486412,10.71771702,129.57,129.54,14.8393]
[1744563487329,10.71771702,129.56,129.54,7.12]
[1744563488210,10.71771702,129.55,129.54,7.12]
[1744563489333,10.71771702,129.56,129.54,7.12]
[1744563492031,7.7172,129.58,129.54,7.12]
[1744563492334,10.71771702,129.56,129.54,7.12]
[1744563495214,10.71771702,129.56,129.53,7.7201]
[1744563495942,10.71771702,129.55,129.51,8.7558]
[1744563496121,10.71771702,129.53,129.51,7.12]
[1744563496320,10.71771702,129.54,129.51,7.12]
[1744563498242,10.71771702,129.53,129.51,7.12]
[1744563506240,10.71771702,129.54,129.51,14.8413]
[1744563506629,10.71771702,129.54,129.51,7.12]
[1744563509445,10.71771702,129.54,129.5,7.7217]
[1744563509621,10.71771702,129.55,129.5,18.43941702]
[1744563509946,10.71771702,129.57,129.52,12.27501702]
[1744563510148,10.71771702,129.58,129.53,10.71771702]
[1744563511125,0.03,129.59,129.52,1.5573]
[1744563511327,10.71771702,129.57,129.52,12.27501702]
[1744563511527,10.71771702,129.57,129.53,7.7202]
[1744563513250,10.71771702,129.55,129.53,7.7202]
[1744563513741,7.7467,129.59,129.53,7.7202]
[1744563513742,10.71771702,129.56,129.53,7.7202]
[1744563516418,0.03,129.59,129.53,37.73841702]
[1744563516747,36.71771702,129.58,129.53,37.73841702]
[1744563517149,10.71771702,129.57,129.53,37.73841702]
[1744563517647,10.71771702,129.57,129.53,27.0207]
[1744563519023,10.71771702,129.56,129.53,27.0207]
[1744563520526,10.71771702,129.55,129.53,27.0207]
[1744563520725,10.71771702,129.56,129.53,27.0207]
[1744563521347,36.71771702,129.58,129.53,37.73841702]
[1744563521525,36.71771702,129.58,129.54,10.71771702]
[1744563522352,0.03,129.59,129.53,50.95261702]
[1744563522646,0.03,129.59,129.56,10.71771702]
[1744563522943,0.03,129.59,129.57,10.71771702]
[1744563523354,0.03,129.59,129.58,10.71771702]
[1744563524251,0.03,129.59,129.58,17.83771702]
[1744563524432,0.03,129.59,129.58,25.55491702]
[1744563526953,0.03,129.59,129.58,14.8372]
[1744563527349,0.03,129.59,129.58,25.55491702]
[1744563529752,0.03,129.59,129.58,14.8372]
[1744563539567,0.03,129.59,129.58,25.55491702]
[1744563544756,0.03,129.59,129.58,14.8372]
[1744563553282,0.03,129.59,129.58,7.7172]
[1744563555081,0.03,129.59,129.58,18.43491702]
[1744563559480,0.03,129.59,129.58,7.7172]
[1744563562657,0.03,129.59,129.58,10.58377382]
[1744563568883,0.03,129.59,129.58,2.86657382]
[1744563570467,0.03,129.59,129.57,7.7175]
[1744563572878,10.74771702,129.59,129.56,14.8181]
[1744563573063,10.71771702,129.58,129.57,2.86735967]
[1744563578291,10.71771702,129.58,129.55,7.7188]
[1744563578482,10.71771702,129.57,129.55,7.7188]
[1744563578787,10.71771702,129.56,129.52,7.1]
[1744563579085,10.71771702,129.53,129.52,7.1]
[1744563582599,10.71771702,129.53,129.5,7.722]
[1744563584605,10.71771702,129.54,129.5,7.722]
[1744563586504,10.71771702,129.55,129.51,10.71771702]
[1744563586800,12.32081702,129.57,129.52,10.71771702]
[1744563587701,12.32081702,129.57,129.53,7.7202]
[1744563588395,10.71771702,129.56,129.53,7.7202]
[1744563590184,10.71771702,129.56,129.52,7.7208]
[1744563592403,10.71771702,129.56,129.52,18.43851702]
[1744563592992,10.71771702,129.56,129.52,7.7208]
[1744563595092,10.71771702,129.57,129.52,43.83661702]
[1744563595290,10.71771702,129.57,129.53,10.71771702]
[1744563595814,10.71771702,129.55,129.52,33.1189]
[1744563595978,10.71771702,129.56,129.52,13.8169]
[1744563596181,10.71771702,129.57,129.52,24.53461702]
[1744563599689,10.71771702,129.57,129.52,31.63461702]
[1744563600004,7.7174,129.58,129.52,31.63461702]
[1744563600005,10.71771702,129.56,129.52,31.63461702]
[1744563601003,10.71771702,129.55,129.52,14.8208]
[1744563601603,10.71771702,129.55,129.52,7.7208]
[1744563602699,10.71771702,129.56,129.52,7.7208]
[1744563606508,10.71771702,129.57,129.52,18.43851702]
[1744563607204,10.71771702,129.56,129.52,7.7208]
[1744563607815,10.71771702,129.57,129.52,18.43851702]
[1744563609312,10.71771702,129.56,129.52,7.7208]
[1744563610210,18.43561702,129.57,129.52,18.43851702]
[1744563610515,10.71771702,129.54,129.51,91.8865]
[1744563610812,10.71771702,129.54,129.5,14.8217]
[1744563613317,10.71771702,129.55,129.5,25.53941702]
[1744563615026,18.43671702,129.55,129.5,25.53941702]
[1744563615201,10.71771702,129.54,129.5,14.8217]
[1744563616420,10.71771702,129.53,129.5,14.8217]
[1744563616816,10.71771702,129.54,129.5,14.8217]
[1744563617599,10.71771702,129.53,129.5,7.1]
[1744563618202,10.71771702,129.52,129.5,7.1]
[1744563620405,10.71771702,129.52,129.49,7.7224]
[1744563622830,11.00204016,129.53,129.49,7.7224]
[1744563631933,10.71771702,129.5,129.48,0.063]
[1744563632117,11.00204016,129.49,129.48,0.063]
[1744563634436,10.71771702,129.49,129.48,0.063]
[1744563634633,26.0,129.51,129.48,0.063]
[1744563634928,11.00204016,129.52,129.48,0.063]
[1744563635125,10.71771702,129.51,129.48,0.063]
[1744563636041,11.00204016,129.52,129.48,7.7862]
[1744563636217,11.00204016,129.52,129.48,18.50391702]
[1744563637641,10.71771702,129.51,129.48,7.7862]
[1744563637837,10.71771702,129.5,129.48,7.7862]
[1744563638144,10.71771702,129.5,129.48,0.063]
[1744563638525,10.71771702,129.51,129.48,0.063]
[1744563640245,0.28432314,129.52,129.48,0.063]
[1744563640421,10.71771702,129.51,129.48,0.063]
[1744563642251,10.71771702,129.52,129.48,0.063]
[1744563642546,11.00204016,129.54,129.49,10.71771702]
[1744563643342,11.00204016,129.54,129.5,7.722]
[1744563644028,0.28432314,129.54,129.5,7.722]
[1744563644236,10.71771702,129.53,129.5,7.722]
[1744563644755,8.00392314,129.54,129.5,7.722]
[1744563644930,10.71771702,129.53,129.5,7.722]
[1744563645344,10.71771702,129.53,129.49,7.7226]
[1744563645859,10.71771702,129.52,129.49,7.7226]
[1744563647543,10.71771702,129.53,129.49,7.7226]
[1744563651965,8.00392314,129.54,129.49,7.7226]
[1744563652145,10.71771702,129.53,129.49,7.7226]
[1744563655474,10.71771702,129.52,129.49,7.7226]
[1744563656962,10.71771702,129.51,129.48,6.1961]
[1744563657138,10.71771702,129.5,129.48,7.786]
[1744563661565,10.71771702,129.51,129.48,0.063]
[1744563662059,10.71771702,129.5,129.48,0.063]
[1744563662562,10.71771702,129.51,129.48,0.063]
[1744563671952,10.71771702,129.5,129.48,0.063]
[1744563672162,10.71771702,129.49,129.48,0.063]
[1744563672363,11.00204016,129.49,129.48,0.063]
[1744563673268,18.72464016,129.49,129.48,0.063]
[1744563676375,37.51645059,129.49,129.48,0.063]
[1744563677371,83.18432314,129.48,129.46,0.063]
[1744563677671,29.79385059,129.47,129.46,0.063]
[1744563679355,37.51755059,129.47,129.46,0.063]
[1744563679656,0.42648471,129.46,129.45,0.063]
[1744563679855,37.14420173,129.46,129.45,0.063]
[1744563680271,55.79385059,129.46,129.44,0.063]
[1744563680661,26.28432314,129.45,129.44,0.063]
[1744563680869,26.0,129.45,129.44,0.063]
[1744563681382,10.71771702,129.47,129.44,0.063]
[1744563681675,0.28432314,129.46,129.44,0.063]
[1744563681882,10.71771702,129.47,129.44,0.063]
[1744563682253,82.9,129.51,129.45,10.71771702]
[1744563682568,18.43871702,129.52,129.47,12.33471702]
[1744563682877,0.28432314,129.51,129.47,18.87941702]
[1744563683057,10.71771702,129.51,129.47,18.87941702]
[1744563683263,0.28432314,129.5,129.47,8.1617]
[1744563683663,0.28432314,129.5,129.47,15.8853]
[1744563685281,93.61771702,129.54,129.49,10.71771702]
[1744563685461,0.28432314,129.54,129.5,10.71771702]
[1744563686278,10.74771702,129.55,129.5,10.71771702]
[1744563686481,0.28432314,129.54,129.5,10.71771702]
[1744563687183,0.28432314,129.53,129.51,7.7214]
[1744563687886,0.28432314,129.53,129.47,27.4711]
[1744563687887,10.71771702,129.52,129.47,27.4711]
[1744563688063,10.71771702,129.51,129.47,27.4711]
[1744563688265,10.71771702,129.51,129.47,38.18881702]
[1744563689388,10.71771702,129.51,129.48,7.7232]
[1744563689589,10.71771702,129.52,129.48,7.7232]
[1744563695289,11.14420173,129.5,129.44,0.063]
[1744563695477,10.71771702,129.48,129.45,7.7249]
[1744563695698,10.71771702,129.49,129.45,7.7249]
[1744563696268,0.28432314,129.51,129.47,10.71771702]
[1744563696463,10.71771702,129.52,129.47,18.44091702]
[1744563696689,0.28432314,129.52,129.48,10.71771702]
[1744563697477,11.00204016,129.52,129.48,10.71771702]
[1744563698591,11.00204016,129.52,129.48,18.44061702]
[1744563699372,11.00204016,129.52,129.48,7.7229]
[1744563701075,11.00204016,129.52,129.48,18.44061702]
[1744563701393,0.28432314,129.52,129.48,18.44061702]
[1744563701983,10.74771702,129.55,129.51,10.71771702]
[1744563702196,0.03,129.55,129.51,10.71771702]
[1744563702374,0.31432314,129.55,129.51,10.71771702]
[1744563702576,0.31432314,129.55,129.51,18.43881702]
[1744563703221,0.03,129.55,129.51,18.43881702]
[1744563703590,11.03204016,129.55,129.51,7.7211]
[1744563705002,0.31432314,129.55,129.51,7.7211]
[1744563705301,11.03204016,129.55,129.51,7.7211]
[1744563707103,10.71771702,129.54,129.51,7.7211]
[1744563707397,10.71771702,129.53,129.49,25.50011702]
[1744563707613,10.71771702,129.52,129.49,14.7824]
[1744563708099,10.71771702,129.52,129.49,7.06]
[1744563709307,10.71771702,129.52,129.48,7.723]
[1744563709500,9.98646398,129.52,129.48,7.723]
[1744563710104,10.71771702,129.51,129.47,18.44141702]
[1744563710406,10.71771702,129.51,129.47,7.7237]
[1744563711491,10.71771702,129.49,129.46,15.2356]
[1744563711691,10.71771702,129.48,129.44,7.7884]
[1744563714084,18.44091702,129.48,129.44,7.7884]
[1744563715748,10.71771702,129.47,129.44,0.063]
[1744563716304,10.71771702,129.46,129.44,0.063]
[1744563717316,10.71771702,129.45,129.44,0.063]
[1744563717509,11.00204016,129.45,129.44,0.063]
[1744563717716,18.72694016,129.45,129.44,0.063]
[1744563718725,82.9,129.54,129.45,7.8195]
[1744563718896,7.7202,129.53,129.49,10.71771702]
[1744563719097,0.03,129.55,129.51,10.71771702]
[1744563719391,0.31432314,129.55,129.51,10.71771702]
[1744563719810,0.31432314,129.55,129.51,18.43891702]
[1744563720013,0.03,129.55,129.51,18.43891702]
[1744563720203,0.31432314,129.55,129.51,18.43891702]
[1744563720915,0.03,129.55,129.51,18.43891702]
[1744563721119,0.03,129.55,129.51,24.40437188]
[1744563721325,24.43217188,129.55,129.5,24.40487188]
[1744563722014,16.68317188,129.54,129.5,24.40487188]
[1744563722619,16.68317188,129.53,129.49,7.7223]
[1744563723634,16.68317188,129.51,129.48,14.7829]
[1744563725034,16.68317188,129.52,129.48,14.7829]
[1744563725832,16.68317188,129.5,129.48,7.06]
[1744563726034,16.68317188,129.5,129.46,7.7241]
[1744563726607,16.68317188,129.49,129.45,15.5442]
[1744563727124,16.68317188,129.48,129.44,7.123]
[1744563727434,16.68317188,129.46,129.44,7.123]
[1744563727938,16.68317188,129.47,129.44,14.8485]
[1744563728733,16.68317188,129.46,129.44,7.123]
[1744563728936,16.68317188,129.45,129.44,0.063]
[1744563730243,24.69239502,129.45,129.44,0.063]
[1744563730412,16.96749502,129.45,129.44,0.063]
[1744563731436,82.9,129.48,129.44,0.063]
[1744563731737,82.9,129.48,129.44,16.74617188]
[1744563731738,0.28432314,129.48,129.44,16.74617188]
[1744563732241,7.721,129.52,129.46,22.91807188]
[1744563732418,16.68317188,129.51,129.47,16.68317188]
[1744563732618,0.28432314,129.51,129.47,16.68317188]
[1744563733021,16.68317188,129.52,129.47,16.68317188]
[1744563733543,16.96749502,129.52,129.48,7.7232]
[1744563734040,16.68317188,129.52,129.48,7.7232]
[1744563734414,16.68317188,129.52,129.48,16.68317188]
[1744563735341,16.68317188,129.52,129.47,24.40687188]
[1744563736046,16.68317188,129.49,129.46,13.959]
[1744563736444,0.28432314,129.51,129.46,13.959]
[1744563736638,16.68317188,129.5,129.46,30.64217188]
[1744563737843,42.96749502,129.51,129.46,30.64217188]
[1744563739041,50.68899502,129.51,129.46,30.64217188]
[1744563739228,16.68317188,129.49,129.46,6.2349]
[1744563739732,16.68317188,129.49,129.46,13.9592]
[1744563740043,16.68317188,129.5,129.46,13.9592]
[1744563740853,24.40527188,129.5,129.46,13.9592]
[1744563741324,24.40527188,129.5,129.46,6.2349]
[1744563741325,16.68317188,129.49,129.46,6.2349]
[1744563741951,7.7221,129.5,129.45,8.6865]
[1744563741952,16.68317188,129.48,129.45,8.6865]
[1744563742124,16.68317188,129.48,129.45,16.4114]
[1744563742325,7.7222,129.5,129.45,33.09457188]
[1744563742526,24.40537188,129.5,129.45,33.09457188]
[1744563742749,0.28432314,129.51,129.48,16.68317188]
[1744563743251,24.40417188,129.52,129.47,16.68317188]
[1744563744243,16.68317188,129.51,129.47,24.40677188]
[1744563745548,16.68317188,129.51,129.46,24.40747188]
[1744563745849,16.68317188,129.49,129.45,16.4112]
[1744563748259,7.7224,129.5,129.45,33.09437188]
[1744563748442,24.40557188,129.5,129.45,33.09437188]
[1744563748651,0.28432314,129.51,129.46,16.68317188]
[1744563748952,16.96749502,129.51,129.46,16.68317188]
[1744563749336,16.68317188,129.5,129.45,33.09437188]
[1744563750658,16.68317188,129.48,129.45,1.6265]
[1744563751352,24.40577188,129.49,129.45,9.3514]
[1744563751839,16.68317188,129.49,129.45,9.3514]
[1744563752550,24.40547188,129.5,129.45,9.3514]
[1744563753126,26.0,129.52,129.47,16.68317188]
[1744563753356,82.93,129.55,129.5,16.68317188]
[1744563753564,0.03,129.55,129.52,16.68317188]
[1744563755555,16.71317188,129.55,129.51,25.92337188]
[1744563755774,16.68317188,129.53,129.49,14.7825]
[1744563756055,16.68317188,129.52,129.49,14.7825]
[1744563761757,16.68317188,129.52,129.49,7.06]
[1744563761935,24.40397188,129.52,129.49,7.06]
[1744563762135,16.68317188,129.51,129.48,1.5191]
[1744563762862,16.68317188,129.5,129.46,14.01]
[1744563763061,16.68317188,129.5,129.46,14.0101]
[1744563763364,16.68317188,129.49,129.46,14.0101]
[1744563763658,16.68317188,129.5,129.46,14.0101]
[1744563764546,16.68317188,129.5,129.46,30.69327188]
[1744563766339,24.40477188,129.51,129.46,30.69327188]
[1744563768964,24.40477188,129.51,129.46,22.96897188]
[1744563769150,24.40477188,129.51,129.46,30.69327188]
[1744563770165,24.40477188,129.51,129.47,16.68317188]
[1744563770466,24.40477188,129.51,129.47,7.7237]
[1744563774064,24.40477188,129.51,129.47,24.40687188]
[1744563774875,16.68317188,129.52,129.47,24.40687188]
[1744563775056,0.28432314,129.54,129.5,16.68317188]
[1744563775256,99.61317188,129.55,129.5,16.68317188]
[1744563776073,0.28432314,129.53,129.5,16.68317188]
[1744563776278,0.03,129.55,129.52,16.68317188]
[1744563776446,0.03,129.55,129.54,16.68317188]
[1744563778747,0.03,129.55,129.54,24.40277188]
[1744563783378,0.03,129.55,129.54,31.44277188]
[1744563783962,0.03,129.55,129.54,132.83458231]
[1744563784157,0.03,129.55,129.54,140.55328231]
[1744563784358,0.03,129.55,129.54,144.50432302]
[1744563784673,0.03,129.55,129.54,140.55328231]
[1744563789180,0.03,129.58,129.55,18.79181043]
[1744563789482,0.03,129.58,129.57,16.68317188]
[1744563790482,0.03,129.58,129.57,24.40097188]
[1744563791486,0.03,129.58,129.57,16.68317188]
[1744563792087,0.03,129.58,129.55,90.3188]
[1744563792583,0.03,129.58,129.55,7.7188]
[1744563793888,0.31432314,129.58,129.54,72.75871834]
[1744563794090,16.68317188,129.56,129.54,56.07554646]
[1744563794257,0.31432314,129.58,129.51,18.21827188]
[1744563794258,16.68317188,129.55,129.51,25.93947188]
[1744563794689,24.40227188,129.55,129.51,25.93947188]
[1744563795062,7.7191,129.55,129.51,25.93947188]
[1744563796990,7.7191,129.55,129.51,9.2563]
[1744563797191,7.7191,129.55,129.51,25.93947188]
[1744563797563,24.40227188,129.55,129.5,31.44487188]
[1744563797786,16.68317188,129.53,129.5,7.04]
[1744563798159,16.96749502,129.54,129.5,7.04]
[1744563798393,16.68317188,129.54,129.5,31.44507188]
[1744563798695,7.7191,129.55,129.51,16.68317188]
[1744563799580,7.7191,129.55,129.51,24.40447188]
[1744563799992,24.40227188,129.55,129.5,31.44487188]
[1744563800173,16.68317188,129.53,129.5,7.04]
[1744563800567,7.7191,129.55,129.51,16.68317188]
[1744563800894,24.40227188,129.55,129.5,31.44507188]
[1744563802705,16.68317188,129.54,129.5,31.44507188]
[1744563803321,24.40277188,129.54,129.5,31.44507188]
[1744563803480,24.40277188,129.54,129.5,7.04]
[1744563804394,16.68317188,129.52,129.5,7.04]
[1744563805288,24.68809502,129.53,129.5,7.04]
[1744563805973,16.68317188,129.52,129.5,7.04]
[1744563806299,16.68317188,129.52,129.48,18.21827188]
[1744563807095,24.68779502,129.53,129.48,25.94137188]
[1744563808104,0.28432314,129.53,129.49,16.68317188]
[1744563808277,0.28432314,129.53,129.48,9.2582]
[1744563808278,7.7178,129.57,129.51,16.68317188]
[1744563808479,24.40097188,129.57,129.52,16.68317188]
[1744563808680,16.68317188,129.56,129.51,23.72317188]
[1744563808978,16.68317188,129.52,129.51,7.04]
[1744563809204,16.68317188,129.52,129.48,25.94137188]
[1744563809688,16.68317188,129.53,129.48,25.94137188]
[1744563809999,24.40307188,129.54,129.49,16.68317188]
[1744563810305,24.40307188,129.54,129.5,16.68317188]
[1744563810818,24.40307188,129.54,129.49,24.40527188]
[1744563812509,24.40337188,129.53,129.48,25.94117188]
[1744563812693,50.40337188,129.53,129.48,25.94117188]
[1744563812894,16.96749502,129.52,129.47,14.7635]
[1744563813096,16.68317188,129.51,129.47,14.7635]
[1744563813398,16.68317188,129.51,129.47,31.44667188]
[1744563813595,16.96749502,129.52,129.47,31.44667188]
[1744563814009,24.68839502,129.52,129.47,31.44667188]
[1744563814922,7.7184,129.56,129.51,16.68317188]
[1744563815086,0.03,129.58,129.52,7.04]
[1744563815283,0.03,129.58,129.54,16.68317188]
[1744563815593,16.68317188,129.57,129.52,23.72317188]
[1744563815788,0.03,129.58,129.54,16.68317188]
[1744563816099,0.03,129.58,129.55,16.68317188]
[1744563816290,0.03,129.58,129.55,24.40207188]
[1744563818389,0.03,129.58,129.56,16.68317188]
[1744563818606,0.03,129.58,129.55,24.40207188]
[1744563819384,0.03,129.58,129.56,16.68317188]
[1744563820415,0.03,129.58,129.55,24.40207188]
[1744563823521,0.03,129.58,129.56,16.68317188]
[1744563824191,0.03,129.58,129.57,7.7178]
[1744563825307,0.03,129.58,129.57,24.40097188]
[1744563825698,0.03,129.58,129.57,14.7578]
[1744563825899,0.03,129.58,129.57,31.44097188]
[1744563828026,0.03,129.59,129.57,31.44097188]
[1744563828338,0.03,129.6,129.58,22.85977188]
[1744563828507,0.03,129.6,129.59,16.68317188]
[1744563829110,0.03,129.6,129.59,24.39977188]
[1744563832428,0.03,129.6,129.59,7.7166]
[1744563832603,0.03,129.6,129.59,24.39977188]
[1744563836247,0.0001,129.6,129.59,43.19158231]
[1744563836437,0.0001,129.6,129.59,44.80388231]
[1744563838446,0.0001,129.61,129.6,18.79181043]
[1744563838623,0.0001,129.61,129.6,134.75815419]
[1744563839652,0.0001,129.62,129.6,135.04247733]
[1744563839854,0.0001,129.62,129.61,16.68317188]
[1744563840245,0.0001,129.62,129.61,24.39857188]
[1744563840442,0.0001,129.63,129.62,18.79181043]
[1744563840650,0.03,129.67,129.66,18.79181043]
[1744563840828,0.03,129.67,129.66,118.07498231]
[1744563841029,0.03,129.67,129.66,99.28317188]
[1744563842129,0.03,129.67,129.66,118.07498231]
[1744563842450,0.03,129.67,129.66,125.78738231]
[1744563842828,0.0001,129.67,129.66,125.78738231]
[1744563843341,0.0001,129.67,129.66,129.59843435]
[1744563843550,0.0001,129.67,129.66,129.88275749]
[1744563843856,0.03,129.71,129.7,35.47498231]
[1744563844023,0.03,129.73,129.71,18.79181043]
[1744563844227,0.03,129.73,129.72,35.47498231]
[1744563844534,0.03,129.73,129.72,24.39207188]
[1744563845243,0.03,129.73,129.72,43.18388231]
[1744563845832,0.0001,129.73,129.72,126.06820545]
[1744563846032,0.0001,129.73,129.72,125.78388231]
[1744563848643,0.0001,129.73,129.72,126.06820545]
[1744563849368,32.06077188,129.82,129.72,145.34040545]
[1744563849540,15.3776,129.82,129.77,16.68317188]
[1744563849851,31.56077188,129.82,129.77,16.68317188]
[1744563850054,16.68317188,129.81,129.76,16.68317188]
[1744563850239,16.68317188,129.79,129.75,23.70317188]
[1744563850633,16.68317188,129.79,129.75,31.41017188]
[1744563850944,24.38747188,129.8,129.75,31.41017188]
[1744563851142,1.5082,129.82,129.76,18.79181043]
[1744563851466,1.5082,129.82,129.76,99.28317188]
[1744563851467,16.68317188,129.81,129.76,99.28317188]
[1744563851857,16.68317188,129.81,129.76,82.6]
[1744563852164,16.68317188,129.81,129.76,99.28317188]
[1744563852459,16.68317188,129.81,129.76,106.98927188]
[1744563852763,35.2111,129.82,129.77,16.68317188]
[1744563852764,51.89427188,129.82,129.77,16.68317188]
[1744563852960,35.2111,129.82,129.77,16.68317188]
[1744563853146,51.89427188,129.82,129.77,16.68317188]
[1744563853471,16.68317188,129.8,129.75,14.727]
[1744563853762,16.68317188,129.8,129.75,31.41017188]
[1744563853965,16.96749502,129.81,129.76,16.68317188]
[1744563854466,24.67119502,129.81,129.76,16.68317188]
[1744563854767,24.67119502,129.81,129.76,24.38957188]
[1744563855559,24.67119502,129.81,129.75,7.02]
[1744563855560,16.96749502,129.79,129.75,7.02]
[1744563855886,16.68317188,129.79,129.75,7.02]
[1744563856168,24.38687188,129.81,129.76,16.68317188]
[1744563856332,16.68317188,129.8,129.75,31.41007188]
[1744563856536,24.38747188,129.8,129.75,31.41007188]
[1744563856737,16.68317188,129.78,129.75,7.02]
[1744563856937,16.68317188,129.78,129.73,24.39147188]
[1744563857150,16.96749502,129.79,129.74,16.68317188]
[1744563857647,7.7043,129.8,129.73,7.7083]
[1744563857648,24.38747188,129.8,129.75,16.68317188]
[1744563858876,16.68317188,129.81,129.76,16.68317188]
[1744563859252,16.68317188,129.77,129.71,108.8926]
[1744563859447,16.68317188,129.77,129.72,16.68317188]
[1744563859872,16.68317188,129.78,129.73,16.68317188]
[1744563860076,26.0,129.79,129.75,16.68317188]
[1744563860263,16.96749502,129.81,129.76,16.68317188]
[1744563860460,25.89437188,129.82,129.77,16.68317188]
[1744563860860,25.89437188,129.82,129.77,24.38907188]
[1744563861053,16.68317188,129.81,129.77,24.38907188]
[1744563861675,16.68317188,129.81,129.76,24.38967188]
[1744563862174,16.68317188,129.8,129.75,24.39007188]
[1744563862475,16.68317188,129.8,129.75,16.68317188]
[1744563862681,16.68317188,129.8,129.75,24.39027188]
[1744563862868,0.28432314,129.81,129.75,24.39027188]
[1744563863067,24.38727188,129.8,129.75,24.39027188]
[1744563863382,7.7041,129.8,129.75,24.39027188]
[1744563863679,16.68317188,129.8,129.76,16.68317188]
[1744563863888,16.68317188,129.8,129.73,7.7083]
[1744563864056,16.68317188,129.77,129.72,7.7086]
[1744563864378,16.68317188,129.77,129.73,16.68317188]
[1744563865076,24.38917188,129.77,129.73,16.68317188]
[1744563865278,24.38917188,129.77,129.73,24.39137188]
[1744563865580,24.38917188,129.77,129.73,16.68317188]
[1744563865770,16.68317188,129.76,129.7,14.8748]
[1744563865978,16.68317188,129.74,129.7,23.70317188]
[1744563866674,1.5082,129.76,129.71,16.68317188]
[1744563866972,16.68317188,129.77,129.72,16.68317188]
[1744563867368,16.68317188,129.76,129.72,16.68317188]
[1744563867570,16.68317188,129.76,129.71,24.39267188]
[1744563868083,16.68317188,129.75,129.7,31.41297188]
[1744563868872,16.68317188,129.74,129.7,7.02]
[1744563869178,1.5259,129.79,129.73,16.68317188]
[1744563869486,16.68317188,129.78,129.73,16.68317188]
[1744563869976,0.28432314,129.78,129.73,16.68317188]
[1744563870186,1.5259,129.79,129.71,1.655]
[1744563870370,18.20907188,129.79,129.74,16.68317188]
[1744563870963,25.91387188,129.79,129.74,24.39037188]
[1744563871178,16.68317188,129.78,129.74,7.7072]
[1744563871564,25.91387188,129.79,129.74,24.39037188]
[1744563872291,16.68317188,129.78,129.72,7.7089]
[1744563872489,16.68317188,129.78,129.73,16.68317188]
[1744563872693,16.68317188,129.78,129.72,7.7089]
[1744563872991,16.68317188,129.77,129.72,24.39207188]